fUSD/lending_fUSD_20240518
["ID","MTS","AMOUNT","RATE_DAILY","PERIOD"]
[327355950,1716012661964,-1255.72405942,0.0004469,30]
[327355951,1716012661973,-150.0,0.00044704,2]
[327355952,1716012661982,-196.297618,0.00044722,14]
[327355953,1716012661991,-200.0,0.00044722,120]
[327355954,1716012662001,-1000.0,0.00044722,120]
[327355955,1716012662011,-155.19,0.00044726,2]
[327355956,1716012662020,-628.051815,0.00044748,64]
[327355957,1716012662029,-200.0,0.00044752,120]
[327355958,1716012662039,-150.0,0.00044753,2]
[327355959,1716012662048,-3215.10754267,0.00044794,20]
[327355960,1716012662057,-150.0,0.00044796,2]
[327355961,1716012662067,-150.0,0.00044796,2]
[327355962,1716012662076,-941.4059692,0.00044881,2]
[327355963,1716012662086,-326.37444309,0.00044881,4]
[327355964,1716012662096,-208.23161112,0.00044881,4]
[327355965,1716012662105,-2479.85985431,0.00044881,4]
[327355966,1716012662115,-525.0218736,0.00044881,4]
[327355967,1716012662124,-500.0,0.0004489,30]
[327355968,1716012662134,-477.50237097,0.0004489,30]
[327355969,1716012662143,-1124.78,0.0004489,30]
[327355970,1716012662154,-1026.83,0.0004489,30]
[327355971,1716012662163,-151.0,0.00044891,14]
[327355972,1716012662172,-151.0,0.00044891,14]
[327355973,1716012662182,-3597.45,0.00044891,30]
[327355974,1716012662192,-176.655874,0.00044891,14]
[327355975,1716012662201,-176.655874,0.00044891,14]
[327355976,1716012662211,-531.52,0.00044891,30]
[327355977,1716012662221,-2126.82,0.00044891,30]
[327355978,1716012662230,-500.0,0.00044891,30]
[327355979,1716012662240,-500.0,0.00044891,30]
[327355980,1716012662250,-997.58,0.00044891,30]
[327355981,1716012662260,-2565.86,0.00044891,30]
[327355982,1716012662269,-626.69,0.00044891,30]
[327355983,1716012662279,-500.0,0.00044891,30]
[327355984,1716012662288,-500.0,0.00044891,30]
[327355985,1716012662298,-500.0,0.00044891,30]
[327355986,1716012662307,-1975.86428278,0.00044892,7]
[327355987,1716012662322,-1975.86428278,0.00044892,7]
[327355988,1716012662331,-1975.86428278,0.00044892,7]
[327355989,1716012662340,-1975.86428278,0.00044892,7]
[327355990,1716012662350,-1975.86428278,0.00044892,7]
[327355991,1716012662364,-1975.86428278,0.00044892,7]
[327355992,1716012662374,-1975.86428278,0.00044892,7]
[327355993,1716012662384,-1975.86428278,0.00044892,7]
[327355994,1716012662396,-1975.86428278,0.00044892,7]
[327355995,1716012662405,-1975.86428278,0.00044892,7]
[327355996,1716012662414,-1975.86428278,0.00044892,7]
[327355997,1716012662424,-1975.86428278,0.00044892,7]
[327355998,1716012662434,-1975.86428278,0.00044892,7]
[327355999,1716012662444,-1975.86428278,0.00044892,7]
[327356000,1716012662453,-1975.86428278,0.00044892,7]
[327356001,1716012662463,-1975.86428278,0.00044892,7]
[327356002,1716012662473,-1975.86428278,0.00044892,7]
[327356003,1716012662483,-1975.86428278,0.00044892,7]
[327356004,1716012662492,-1975.86428278,0.00044892,7]
[327356005,1716012662503,-1976.36,0.00044892,7]
[327356006,1716012662513,-7903.53213112,0.00044892,7]
[327356007,1716012662522,-7903.53213112,0.00044892,7]
[327356008,1716012662531,-7903.53213112,0.00044892,7]
[327356009,1716012662542,-7903.53213112,0.00044892,7]
[327356010,1716012662552,-7903.53213112,0.00044892,7]
[327356011,1716012662563,-7903.53213112,0.00044892,7]
[327356012,1716012662573,-7903.53213112,0.00044892,7]
[327356013,1716012662583,-7903.53213112,0.00044892,7]
[327356014,1716012662594,-7903.53213112,0.00044892,7]
[327356015,1716012662604,-7903.53213112,0.00044892,7]
[327356016,1716012662614,-7903.53213112,0.00044892,7]
[327356017,1716012662623,-7903.53213112,0.00044892,7]
[327356018,1716012662633,-7903.53213112,0.00044892,7]
[327356019,1716012662642,-7903.53213112,0.00044892,7]
[327356020,1716012662652,-7903.53213112,0.00044892,7]
[327356021,1716012662662,-7903.53213112,0.00044892,7]
[327356022,1716012662671,-7903.53213112,0.00044892,7]
[327356023,1716012662680,-7903.53213112,0.00044892,7]
[327356024,1716012662691,-7903.53213112,0.00044892,7]
[327356025,1716012662701,-582.18075575,0.00044892,7]
[327356026,1716012662711,-582.18075575,0.00044892,7]
[327356027,1716012662721,-582.18075575,0.00044892,7]
[327356028,1716012662733,-582.18075575,0.00044892,7]
[327356029,1716012662743,-582.18075575,0.00044892,7]
[327356030,1716012662753,-582.18075575,0.00044892,7]
[327356031,1716012662762,-582.18075575,0.00044892,7]
[327356032,1716012662772,-582.18075575,0.00044892,7]
[327356033,1716012662781,-582.18075575,0.00044892,7]
[327356034,1716012662792,-582.18075575,0.00044892,7]
[327356035,1716012662804,-582.18075575,0.00044892,7]
[327356036,1716012662816,-582.18075575,0.00044892,7]
[327356037,1716012662827,-582.18075575,0.00044892,7]
[327356038,1716012662837,-582.18075575,0.00044892,7]
[327356039,1716012662846,-582.18075575,0.00044892,7]
[327356040,1716012662855,-582.18075575,0.00044892,7]
[327356041,1716012662865,-582.18075575,0.00044892,7]
[327356042,1716012662874,-582.18075575,0.00044892,7]
[327356043,1716012662883,-582.18075575,0.00044892,7]
[327356044,1716012662892,-582.68,0.00044892,7]
[327356045,1716012662975,-2328.79802299,0.00044892,7]
[327356046,1716012662985,-2328.79802299,0.00044892,7]
[327356047,1716012662995,-2328.79802299,0.00044892,7]
[327356048,1716012663004,-2328.79802299,0.00044892,7]
[327356049,1716012663014,-2328.79802299,0.00044892,7]
[327356050,1716012663024,-2328.79802299,0.00044892,7]
[327356051,1716012663033,-2328.79802299,0.00044892,7]
[327356052,1716012663043,-2328.79802299,0.00044892,7]
[327356053,1716012663053,-2328.79802299,0.00044892,7]
[327356054,1716012663062,-2328.79802299,0.00044892,7]
[327356055,1716012663072,-2328.79802299,0.00044892,7]
[327356056,1716012663081,-2328.79802299,0.00044892,7]
[327356057,1716012663091,-2328.79802299,0.00044892,7]
[327356058,1716012663100,-2328.79802299,0.00044892,7]
[327356059,1716012663109,-2328.79802299,0.00044892,7]
[327356060,1716012663118,-2328.79802299,0.00044892,7]
[327356061,1716012663127,-2328.79802299,0.00044892,7]
[327356062,1716012663136,-2328.79802299,0.00044892,7]
[327356063,1716012663145,-2328.79802299,0.00044892,7]
[327356064,1716012663154,-174.40521767,0.00044892,7]
[327356065,1716012663164,-174.40521767,0.00044892,7]
[327356066,1716012663173,-174.40521767,0.00044892,7]
[327356067,1716012663182,-174.40521767,0.00044892,7]
[327356068,1716012663191,-174.40521767,0.00044892,7]
[327356069,1716012663201,-174.40521767,0.00044892,7]
[327356070,1716012663210,-174.40521767,0.00044892,7]
[327356071,1716012663219,-174.40521767,0.00044892,7]
[327356072,1716012663229,-174.40521767,0.00044892,7]
[327356073,1716012663239,-174.40521767,0.00044892,7]
[327356074,1716012663248,-174.40521767,0.00044892,7]
[327356075,1716012663258,-174.40521767,0.00044892,7]
[327356076,1716012663267,-174.40521767,0.00044892,7]
[327356077,1716012663277,-174.40521767,0.00044892,7]
[327356078,1716012663287,-174.40521767,0.00044892,7]
[327356079,1716012663296,-174.40521767,0.00044892,7]
[327356080,1716012663306,-174.40521767,0.00044892,7]
[327356081,1716012663319,-174.40521767,0.00044892,7]
[327356082,1716012663328,-174.40521767,0.00044892,7]
[327356083,1716012663338,-174.9,0.00044892,7]
[327356084,1716012663347,-697.69587067,0.00044892,7]
[327356085,1716012663358,-697.69587067,0.00044892,7]
[327356086,1716012663368,-697.69587067,0.00044892,7]
[327356087,1716012663378,-697.69587067,0.00044892,7]
[327356088,1716012663389,-697.69587067,0.00044892,7]
[327356089,1716012663399,-697.69587067,0.00044892,7]
[327356090,1716012663410,-697.69587067,0.00044892,7]
[327356091,1716012663420,-697.69587067,0.00044892,7]
[327356092,1716012663431,-697.69587067,0.00044892,7]
[327356093,1716012663440,-697.69587067,0.00044892,7]
[327356094,1716012663450,-697.69587067,0.00044892,7]
[327356095,1716012663459,-697.69587067,0.00044892,7]
[327356096,1716012663468,-697.69587067,0.00044892,7]
[327356097,1716012663477,-697.69587067,0.00044892,7]
[327356098,1716012663486,-697.69587067,0.00044892,7]
[327356099,1716012663496,-697.69587067,0.00044892,7]
[327356100,1716012663505,-697.69587067,0.00044892,7]
[327356101,1716012663515,-697.69587067,0.00044892,7]
[327356102,1716012663524,-697.69587067,0.00044892,7]
[327356103,1716012663533,-518.40875752,0.00044892,7]
[327356104,1716012663544,-518.40875752,0.00044892,7]
[327356105,1716012663553,-518.40875752,0.00044892,7]
[327356106,1716012663562,-518.40875752,0.00044892,7]
[327356107,1716012663573,-518.40875752,0.00044892,7]
[327356108,1716012663583,-518.40875752,0.00044892,7]
[327356109,1716012663592,-518.40875752,0.00044892,7]
[327356110,1716012663603,-518.40875752,0.00044892,7]
[327356111,1716012663614,-518.40875752,0.00044892,7]
[327356112,1716012663624,-518.40875752,0.00044892,7]
[327356113,1716012663635,-518.40875752,0.00044892,7]
[327356114,1716012663644,-518.40875752,0.00044892,7]
[327356115,1716012663655,-518.40875752,0.00044892,7]
[327356116,1716012663665,-518.40875752,0.00044892,7]
[327356117,1716012663675,-518.40875752,0.00044892,7]
[327356118,1716012663684,-518.40875752,0.00044892,7]
[327356119,1716012663694,-518.40875752,0.00044892,7]
[327356120,1716012663703,-518.40875752,0.00044892,7]
[327356121,1716012663712,-518.40875752,0.00044892,7]
[327356122,1716012663721,-518.9,0.00044892,7]
[327356123,1716012663731,-2073.71003008,0.00044892,7]
[327356124,1716012663739,-2073.71003008,0.00044892,7]
[327356125,1716012663752,-151.0,0.00044892,14]
[327356126,1716012663762,-151.0,0.00044892,14]
[327356127,1716012663773,-151.0,0.00044892,14]
[327356128,1716012663784,-151.0,0.00044892,14]
[327356129,1716012663793,-151.0,0.00044892,14]
[327356130,1716012663802,-151.0,0.00044892,14]
[327356131,1716012663813,-191.802318,0.00044892,14]
[327356132,1716012663823,-191.802318,0.00044892,14]
[327356133,1716012663832,-151.776498,0.00044892,14]
[327356134,1716012663842,-151.776498,0.00044892,14]
[327356135,1716012663851,-666.677189,0.00044892,14]
[327356136,1716012663860,-666.677189,0.00044892,14]
[327356137,1716012663870,-500.0,0.00044899,30]
[327356138,1716012663879,-1124.78,0.00044899,30]
[327356139,1716012663888,-1026.83,0.00044899,30]
[327356140,1716012663897,-158.96052221,0.000449,17]
[327356141,1716012663906,-3215.10754267,0.000449,20]
[327356142,1716012663916,-176.086158,0.000449,14]
[327356143,1716012663925,-176.086158,0.000449,14]
[327356144,1716012663934,-160.0,0.000449,21]
[327356145,1716012663944,-7489.01767515,0.000449,2]
[327356146,1716012663954,-7904.03,0.000449,7]
[327356147,1716012663963,-1038.71455802,0.000449,2]
[327356148,1716012663972,-2329.29,0.000449,7]
[327356149,1716012663981,-151.45178681,0.000449,66]
[327356150,1716012663991,-698.19,0.000449,7]
[327356151,1716012664001,-191.63016398,0.000449,2]
[327356152,1716012664010,-687.86555454,0.000449,2]
[327356153,1716012664019,-150.0,0.00044903,2]
[327356154,1716012664028,-150.0,0.00044917,2]
[327356155,1716012664038,-150.0,0.00044942,2]
[327356156,1716012664047,-150.0,0.00044944,2]
[327356157,1716012664056,-150.0,0.00044959,30]
[327356158,1716012664066,-150.0,0.00044959,30]
[327356159,1716012664075,-150.0,0.00044959,30]
[327356160,1716012664084,-150.0,0.00044959,30]
[327356161,1716012664093,-150.0,0.00044959,30]
[327356162,1716012664103,-150.0,0.00044959,30]
[327356163,1716012664113,-150.0,0.00044959,30]
[327356164,1716012664122,-150.0,0.00044959,30]
[327356165,1716012664131,-295.76159952,0.00044959,30]
[327356166,1716012664140,-150.0,0.00044959,30]
[327356167,1716012664149,-150.0,0.00044959,30]
[327356168,1716012664159,-150.0,0.00044959,30]
[327356169,1716012664168,-158.591495,0.00044968,14]
[327356170,1716012664177,-151.0,0.00044968,14]
[327356171,1716012664187,-3597.45,0.00044968,30]
[327356172,1716012664196,-491.60572532,0.00044968,2]
[327356173,1716012664205,-176.655874,0.00044968,14]
[327356174,1716012664215,-176.655874,0.00044968,14]
[327356175,1716012664224,-531.52,0.00044968,30]
[327356176,1716012664233,-2126.82,0.00044968,30]
[327356177,1716012664242,-500.0,0.00044968,30]
[327356178,1716012664253,-500.0,0.00044968,30]
[327356179,1716012664262,-997.58,0.00044968,30]
[327356180,1716012664272,-2565.86,0.00044968,30]
[327356181,1716012664355,-626.69,0.00044968,30]
[327356182,1716012664365,-500.0,0.00044968,30]
[327356183,1716012664374,-500.0,0.00044968,30]
[327356184,1716012664384,-500.0,0.00044968,30]
[327356185,1716012664394,-151.0,0.00044969,14]
[327356186,1716012664404,-151.0,0.00044969,14]
[327356187,1716012664414,-224.909455,0.00044969,14]
[327356188,1716012664423,-151.0,0.00044969,14]
[327356189,1716012664433,-56962.9243935,0.00044969,2]
[327356190,1716012664442,-44774.1551192,0.00044969,2]
[327356191,1716012664452,-32585.3858449,0.00044969,2]
[327356192,1716012664461,-20396.6165706,0.00044969,2]
[327356193,1716012664471,-8207.8472963,0.00044969,2]
[327356194,1716012664482,-151.0,0.00044969,14]
[327356195,1716012664492,-254.359651,0.00044969,14]
[327356196,1716012664503,-191.802318,0.00044969,14]
[327356197,1716012664512,-191.802319,0.00044969,14]
[327356198,1716012664522,-151.776498,0.00044969,14]
[327356199,1716012664533,-151.776503,0.00044969,14]
[327356200,1716012664542,-666.677189,0.00044969,14]
[327356201,1716012664552,-666.677196,0.00044969,14]
[327356202,1716012664562,-2949.5793934,0.00044969,2]
[327356203,1716012664574,-2318.4365392,0.00044969,2]
[327356204,1716012664584,-1687.2936851,0.00044969,2]
[327356205,1716012664595,-1056.1508309,0.00044969,2]
[327356206,1716012664605,-425.0079768,0.00044969,2]
[327356207,1716012664614,-4545.681585,0.00044969,2]
[327356208,1716012664625,-3573.0091911,0.00044969,2]
[327356209,1716012664635,-2600.3367972,0.00044969,2]
[327356210,1716012664646,-1627.6644032,0.00044969,2]
[327356211,1716012664655,-654.9920093,0.00044969,2]
[327356212,1716012664666,-150.0,0.00044971,2]
[327356213,1716012664675,-500.0,0.0004498,30]
[327356214,1716012664685,-1124.78,0.0004498,30]
[327356215,1716012664695,-1026.83,0.0004498,30]
[327356216,1716012664704,-3597.45,0.00044981,30]
[327356217,1716012664714,-531.52,0.00044981,30]
[327356218,1716012664723,-531.52,0.00044981,30]
[327356219,1716012664733,-531.52,0.00044981,30]
[327356220,1716012664744,-531.52,0.00044981,30]
[327356221,1716012664755,-531.52,0.00044981,30]
[327356222,1716012664764,-2126.82,0.00044981,30]
[327356223,1716012664776,-2126.82,0.00044981,30]
[327356224,1716012664786,-2126.82,0.00044981,30]
[327356225,1716012664796,-2126.82,0.00044981,30]
[327356226,1716012664806,-2126.82,0.00044981,30]
[327356227,1716012664816,-500.0,0.00044981,30]
[327356228,1716012664826,-500.0,0.00044981,30]
[327356229,1716012664836,-500.0,0.00044981,30]
[327356230,1716012664846,-500.0,0.00044981,30]
[327356231,1716012664856,-185.84,0.00044981,30]
[327356232,1716012664867,-997.58,0.00044981,30]
[327356233,1716012664877,-997.58,0.00044981,30]
[327356234,1716012664886,-997.58,0.00044981,30]
[327356235,1716012664897,-997.58,0.00044981,30]
[327356236,1716012664910,-997.58,0.00044981,30]
[327356237,1716012664919,-500.0,0.00044981,30]
[327356238,1716012664928,-500.0,0.00044981,30]
[327356239,1716012664938,-500.0,0.00044981,30]
[327356240,1716012664948,-500.0,0.00044981,30]
[327356241,1716012664957,-381.61153951,0.00044981,30]
[327356242,1716012664967,-2565.86,0.00044981,30]
[327356243,1716012664976,-2565.86,0.00044981,30]
[327356244,1716012664985,-2565.86,0.00044981,30]
[327356245,1716012664994,-2565.86,0.00044981,30]
[327356246,1716012665005,-2565.86,0.00044981,30]
[327356247,1716012665014,-626.69,0.00044981,30]
[327356248,1716012665024,-626.69,0.00044981,30]
[327356249,1716012665032,-626.69,0.00044981,30]
[327356250,1716012665042,-626.69,0.00044981,30]
[327356251,1716012665051,-626.69,0.00044981,30]
[327356252,1716012665060,-1124.78,0.00044981,30]
[327356253,1716012665069,-1124.78,0.00044981,30]
[327356254,1716012665078,-1124.78,0.00044981,30]
[327356255,1716012665087,-1124.78,0.00044981,30]
[327356256,1716012665096,-1124.78,0.00044981,30]
[327356257,1716012665105,-1124.78,0.00044981,30]
[327356258,1716012665115,-1124.78,0.00044981,30]
[327356259,1716012665124,-1124.95886781,0.00044981,30]
[327356260,1716012665133,-500.0,0.00044981,30]
[327356261,1716012665142,-1026.83,0.00044981,30]
[327356262,1716012665151,-1026.83,0.00044981,30]
[327356263,1716012665160,-1026.83,0.00044981,30]
[327356264,1716012665169,-500.0,0.00044981,30]
[327356265,1716012665178,-1026.83,0.00044981,30]
[327356266,1716012665187,-1026.83,0.00044981,30]
[327356267,1716012665197,-1026.83,0.00044981,30]
[327356268,1716012665206,-1026.83,0.00044981,30]
[327356269,1716012665215,-1026.8623512,0.00044981,30]
[327356270,1716012665224,-500.0,0.00044981,30]
[327356271,1716012665234,-500.0,0.00044981,30]
[327356272,1716012665243,-500.0,0.00044981,30]
[327356273,1716012665253,-500.0,0.00044981,30]
[327356274,1716012665263,-500.0,0.00044981,30]
[327356275,1716012665272,-151.0,0.00044982,14]
[327356276,1716012665281,-151.0,0.00044982,14]
[327356277,1716012665290,-3597.45,0.00044982,30]
[327356278,1716012665299,-192.27234,0.00044982,14]
[327356279,1716012665308,-151.0,0.00044982,14]
[327356280,1716012665321,-151.0,0.00044982,14]
[327356281,1716012665331,-176.655874,0.00044982,14]
[327356282,1716012665340,-176.655874,0.00044982,14]
[327356283,1716012665349,-176.655874,0.00044982,14]
[327356284,1716012665360,-176.655874,0.00044982,14]
[327356285,1716012665371,-151.0,0.00044982,14]
[327356286,1716012665382,-151.0,0.00044982,14]
[327356287,1716012665395,-289.415028,0.00044982,14]
[327356288,1716012665405,-176.086158,0.00044982,14]
[327356289,1716012665415,-176.086158,0.00044982,14]
[327356290,1716012665425,-176.086158,0.00044982,14]
[327356291,1716012665435,-176.086164,0.00044982,14]
[327356292,1716012665444,-500.0,0.00044982,30]
[327356293,1716012665453,-437.7222193,0.00044982,2]
[327356294,1716012665462,-500.0,0.00044982,30]
[327356295,1716012665472,-500.0,0.00044982,30]
[327356296,1716012665481,-155.88297326,0.00044983,4]
[327356297,1716012665490,-311.04576708,0.00044983,2]
[327356298,1716012665499,-3597.45,0.00044983,30]
[327356299,1716012665508,-3597.45,0.00044983,30]
[327356300,1716012665517,-3597.45,0.00044983,30]
[327356301,1716012665526,-3597.45,0.00044983,30]
[327356302,1716012665536,-7485.4977898,0.00044983,2]
[327356303,1716012665547,-531.52,0.00044983,30]
[327356304,1716012665557,-2126.82,0.00044983,30]
[327356305,1716012665567,-500.0,0.00044983,30]
[327356306,1716012665640,-500.0,0.00044983,30]
[327356307,1716012665654,-500.0,0.00044983,30]
[327356308,1716012665664,-500.0,0.00044983,30]
[327356309,1716012665674,-437.7222193,0.00044983,2]
[327356310,1716012665684,-997.58,0.00044983,30]
[327356311,1716012665693,-2565.86,0.00044983,30]
[327356312,1716012665704,-626.69,0.00044983,30]
[327356313,1716012665715,-500.0,0.00044983,30]
[327356314,1716012665725,-500.0,0.00044983,30]
[327356315,1716012665736,-500.0,0.00044983,30]
[327356316,1716012665745,-500.0,0.00044983,30]
[327356317,1716012665756,-500.0,0.00044983,30]
[327356318,1716012665766,-500.0,0.00044983,30]
[327356319,1716012665776,-500.0,0.00044983,30]
[327356320,1716012665786,-395.24908958,0.00044983,30]
[327356321,1716012665796,-500.0,0.00044983,30]
[327356322,1716012665805,-277.48275435,0.00044984,4]
[327356323,1716012665814,-314.81526555,0.00044984,4]
[327356324,1716012665823,-3018.53016703,0.00044984,4]
[327356325,1716012665832,-157.0315687,0.00044984,4]
[327356326,1716012665841,-156.63077785,0.00044984,4]
[327356327,1716012665851,-293.12588548,0.00044984,4]
[327356328,1716012665860,-245.68238299,0.00044984,4]
[327356329,1716012665870,-162.60593912,0.00044984,4]
[327356330,1716012665879,-1940.2757275,0.00044984,4]
[327356331,1716012665889,-267.10361823,0.00044984,4]
[327356332,1716012665898,-24943.12114556,0.00044984,4]
[327356333,1716012665907,-5000.0,0.00044986,4]
[327356334,1716012665916,-500.0,0.00044986,9]
[327356335,1716012665925,-500.0,0.00044986,9]
[327356336,1716012665934,-500.0,0.00044986,9]
[327356337,1716012665944,-500.0,0.00044986,9]
[327356338,1716012665952,-500.0,0.00044986,9]
[327356339,1716012665961,-500.0,0.00044986,9]
[327356340,1716012665970,-500.0,0.00044986,21]
[327356341,1716012665979,-308.09921583,0.00044988,4]
[327356342,1716012665988,-586.10369344,0.00044988,4]
[327356343,1716012665998,-155.19292883,0.00044988,4]
[327356344,1716012666008,-341.96790398,0.00044988,4]
[327356345,1716012666018,-304.10066026,0.00044988,4]
[327356346,1716012666027,-156.19330146,0.00044989,4]
[327356347,1716012666036,-1270.37516817,0.00044989,4]
[327356348,1716012666046,-210.42936122,0.00044989,4]
[327356349,1716012666055,-200.42743667,0.00044989,4]
[327356350,1716012666064,-1221.52526135,0.00044989,4]
[327356351,1716012666074,-155.29541303,0.00044989,4]
[327356352,1716012666083,-199.86404343,0.00044989,4]
[327356353,1716012666092,-175.16580464,0.00044989,4]
[327356354,1716012666102,-157.38721814,0.00044989,4]
[327356355,1716012666111,-156.29271724,0.00044989,4]
[327356356,1716012666120,-155.939382,0.00044989,4]
[327356357,1716012666131,-334.36260949,0.00044989,2]
[327356358,1716012666140,-192.74682529,0.00044989,4]
[327356359,1716012666150,-195.42376414,0.00044989,4]
[327356360,1716012666159,-204.81367251,0.00044989,4]
[327356361,1716012666169,-626.52850058,0.00044989,4]
[327356362,1716012666178,-155.35159705,0.00044989,4]
[327356363,1716012666187,-266.69366476,0.00044989,4]
[327356364,1716012666196,-159.64493161,0.00044989,4]
[327356365,1716012666205,-200.44131636,0.00044989,4]
[327356366,1716012666216,-176.655874,0.00044989,14]
[327356367,1716012666227,-176.655874,0.00044989,14]
[327356368,1716012666236,-163.48260027,0.0004499,4]
[327356369,1716012666245,-155.27767546,0.0004499,4]
[327356370,1716012666255,-811.7231,0.0004499,4]
[327356371,1716012666264,-172.51619029,0.0004499,4]
[327356372,1716012666273,-318.29985525,0.0004499,4]
[327356373,1716012666282,-205.00320898,0.0004499,4]
[327356374,1716012666291,-155.79192259,0.0004499,4]
[327356375,1716012666301,-1693.38590248,0.0004499,4]
[327356376,1716012666311,-160.20887077,0.0004499,4]
[327356377,1716012666327,-783.21738638,0.0004499,2]
[327356378,1716012666336,-222.45808704,0.0004499,4]
[327356379,1716012666345,-210.00334834,0.0004499,30]
[327356380,1716012666354,-788.94409382,0.0004499,4]
[327356381,1716012666365,-197.46260782,0.0004499,2]
[327356382,1716012666374,-282.19919214,0.0004499,4]
[327356383,1716012666384,-157.61651961,0.0004499,4]
[327356384,1716012666394,-204.43698887,0.0004499,4]
[327356385,1716012666404,-2458.57224863,0.0004499,2]
[327356386,1716012666414,-635.26026026,0.0004499,7]
[327356387,1716012666423,-15003.44806378,0.0004499,14]
[327356388,1716012666433,-1273.3216079,0.00044991,60]
[327356389,1716012666442,-3597.45,0.00044991,30]
[327356390,1716012666451,-3597.45,0.00044991,30]
[327356391,1716012666460,-3597.45,0.00044991,30]
[327356392,1716012666469,-3597.45,0.00044991,30]
[327356393,1716012666479,-3597.45,0.00044991,30]
[327356394,1716012666489,-3597.45,0.00044991,30]
[327356395,1716012666499,-3597.62947672,0.00044991,30]
[327356396,1716012666508,-268.092331,0.00044991,14]
[327356397,1716012666518,-531.52,0.00044991,30]
[327356398,1716012666527,-531.52,0.00044991,30]
[327356399,1716012666538,-531.52,0.00044991,30]
[327356400,1716012666549,-531.52,0.00044991,30]
[327356401,1716012666559,-531.52,0.00044991,30]
[327356402,1716012666568,-531.52,0.00044991,30]
[327356403,1716012666577,-531.65250248,0.00044991,30]
[327356404,1716012666588,-2126.82,0.00044991,30]
[327356405,1716012666598,-2126.82,0.00044991,30]
[327356406,1716012666608,-2126.82,0.00044991,30]
[327356407,1716012666617,-2126.82,0.00044991,30]
[327356408,1716012666627,-2126.82,0.00044991,30]
[327356409,1716012666636,-2126.82,0.00044991,30]
[327356410,1716012666645,-2127.04655665,0.00044991,30]
[327356411,1716012666655,-500.0,0.00044991,30]
[327356412,1716012666665,-500.0,0.00044991,30]
[327356413,1716012666674,-500.0,0.00044991,30]
[327356414,1716012666686,-500.0,0.00044991,30]
[327356415,1716012666695,-500.0,0.00044991,30]
[327356416,1716012666704,-500.0,0.00044991,30]
[327356417,1716012666714,-271.24883814,0.00044991,30]
[327356418,1716012666724,-997.58,0.00044991,30]
[327356419,1716012666735,-997.58,0.00044991,30]
[327356420,1716012666745,-997.58,0.00044991,30]
[327356421,1716012666822,-997.58,0.00044991,30]
[327356422,1716012666832,-997.58,0.00044991,30]
[327356423,1716012666841,-997.58,0.00044991,30]
[327356424,1716012666850,-997.7048,0.00044991,30]
[327356425,1716012666861,-2565.86,0.00044991,30]
[327356426,1716012666870,-2565.86,0.00044991,30]
[327356427,1716012666882,-2565.86,0.00044991,30]
[327356428,1716012666893,-2565.86,0.00044991,30]
[327356429,1716012666903,-2565.86,0.00044991,30]
[327356430,1716012666913,-2565.86,0.00044991,30]
[327356431,1716012666923,-2565.95196346,0.00044991,30]
[327356432,1716012666932,-626.69,0.00044991,30]
[327356433,1716012666942,-626.69,0.00044991,30]
[327356434,1716012666953,-626.69,0.00044991,30]
[327356435,1716012666962,-626.69,0.00044991,30]
[327356436,1716012666972,-626.69,0.00044991,30]
[327356437,1716012666984,-626.69,0.00044991,30]
[327356438,1716012666993,-626.70824379,0.00044991,30]
[327356439,1716012667004,-500.0,0.00044991,30]
[327356440,1716012667013,-531.61450638,0.00044991,30]
[327356441,1716012667022,-500.0,0.00044991,30]
[327356442,1716012667033,-500.0,0.00044991,30]
[327356443,1716012667043,-341.99882134,0.00044991,30]
[327356444,1716012667053,-4082118.45758424,0.00044992,30]
[327356445,1716012667268,-500.0,0.00043835,30]
[327356446,1716012667277,-2103.10643675,0.00044992,30]
[327356447,1716012667288,-580.4,0.00044992,30]
[327356448,1716012667300,-1769.80409418,0.00044992,30]
[327356449,1716012667311,-3971.36288333,0.00044992,30]